bitfinex/quotes_SOLUSD_20240713
["timestamp","ask_amount","ask_price","bid_price","bid_amount"]
[1720856464504,11.51,139.67,139.63,0.96029569]
[1720856465000,11.51,139.64,139.62,20.0]
[1720856465409,11.51,139.64,139.61,20.0]
[1720856465585,11.51,139.64,139.56,44.1088]
[1720856465774,11.51,139.62,139.56,22.5688]
[1720856466115,11.51,139.62,139.57,11.51]
[1720856466489,11.51,139.63,139.58,11.51]
[1720856466694,0.52331336,139.66,139.6,11.51]
[1720856467006,11.51,139.65,139.6,11.51]
[1720856467303,11.51,139.64,139.61,1.43222926]
[1720856469914,11.51,139.64,139.6,11.51]
[1720856472806,11.51,139.64,139.56,44.1088]
[1720856473001,11.51,139.63,139.58,11.51]
[1720856473194,11.51,139.63,139.59,65.0]
[1720856476002,11.51,139.64,139.6,1.43233112]
[1720856476319,11.51,139.65,139.61,1.43222836]
[1720856477896,11.51,139.64,139.6,1.43230109]
[1720856478098,11.51,139.64,139.61,1.43230092]
[1720856479318,11.51,139.64,139.62,1.43227603]
[1720856479522,11.51,139.64,139.59,76.51]
[1720856482503,11.51,139.64,139.6,1.43229571]
[1720856482694,11.51,139.64,139.61,1.43227688]
[1720856483624,11.51,139.64,139.62,1.43227703]
[1720856483927,11.51,139.64,139.6,1.43227658]
[1720856491333,0.52331336,139.67,139.6,12.94227658]
[1720856491624,11.51,139.65,139.6,12.94227658]
[1720856496633,11.51,139.64,139.6,1.43227658]
[1720856498737,11.51,139.65,139.6,1.43227658]
[1720856509044,0.52331336,139.67,139.6,1.43227658]
[1720856509419,11.51,139.64,139.6,1.43227658]
[1720856509938,11.51,139.65,139.6,12.94227658]
[1720856510240,25.90051336,139.71,139.61,34.3874]
[1720856510440,11.51,139.67,139.62,77.94200203]
[1720856514846,11.51,139.66,139.62,77.94200203]
[1720856515142,11.51,139.66,139.62,66.43200203]
[1720856520336,11.51,139.66,139.63,1.43204217]
[1720856524031,11.51,139.67,139.63,1.43204217]
[1720856524232,0.52331336,139.7,139.63,1.43204217]
[1720856524454,11.51,139.68,139.63,12.94204217]
[1720856525045,0.52331336,139.7,139.64,45.0]
[1720856525346,11.51,139.69,139.65,21.43176141]
[1720856527053,11.51,139.7,139.65,32.94176141]
[1720856529753,0.52331336,139.72,139.65,55.36796141]
[1720856529953,0.52331336,139.72,139.67,11.51]
[1720856530158,11.51,139.71,139.68,1.43158331]
[1720856531754,11.51,139.71,139.67,1.43158843]
[1720856531947,12.03331336,139.7,139.67,1.43158843]
[1720856532157,11.51,139.69,139.67,1.43158843]
[1720856532660,11.51,139.69,139.66,1.43177044]
[1720856533932,11.51,139.67,139.62,1.4317701]
[1720856534265,11.51,139.67,139.63,12.94195414]
[1720856534440,11.51,139.68,139.63,12.94195414]
[1720856535260,11.51,139.68,139.64,20.0]
[1720856535441,11.51,139.68,139.65,1.43191236]
[1720856540362,11.51,139.68,139.64,21.43188999]
[1720856540661,12.03331336,139.67,139.62,31.51]
[1720856540858,11.51,139.67,139.62,31.51]
[1720856541058,11.51,139.67,139.62,20.0]
[1720856541262,11.51,139.67,139.62,31.51]
[1720856541447,11.51,139.66,139.62,20.0]
[1720856542364,11.51,139.65,139.62,20.0]
[1720856542973,11.51,139.64,139.62,21.4321933]
[1720856545167,11.51,139.65,139.62,21.4321933]
[1720856547070,11.51,139.64,139.62,21.4321933]
[1720856550502,11.51,139.65,139.62,21.4321933]
[1720856550972,10.52331336,139.7,139.62,21.4321933]
[1720856551166,11.51,139.65,139.62,21.4321933]
[1720856553572,11.51,139.66,139.62,21.4321933]
[1720856554082,0.52331336,139.7,139.62,21.4321933]
[1720856554380,11.51,139.68,139.63,56.51]
[1720856554564,11.51,139.69,139.64,32.94185992]
[1720856554765,11.51,139.69,139.65,1.43184846]
[1720856555681,0.52331336,139.71,139.65,1.43184846]
[1720856555882,11.51,139.69,139.64,31.51]
[1720856556068,0.52331336,139.71,139.65,45.0]
[1720856556267,11.51,139.69,139.66,0.76773331]
[1720856556472,11.51,139.69,139.65,1.43176975]
[1720856556669,11.51,139.69,139.65,46.43176975]
[1720856557762,11.51,139.69,139.65,69.39846975]
[1720856557982,11.51,139.69,139.65,80.90846975]
[1720856558862,11.51,139.7,139.65,80.90846975]
[1720856559074,11.51,139.71,139.66,11.51]
[1720856559380,11.51,139.71,139.67,1.43155759]
[1720856559584,11.51,139.71,139.68,1.43156217]
[1720856560560,11.51,139.71,139.67,1.4315748]
[1720856560760,11.51,139.71,139.68,1.43157384]
[1720856561773,11.51,139.71,139.67,1.43157384]
[1720856561973,11.51,139.71,139.68,1.43147157]
[1720856563095,11.51,139.71,139.67,1.43157486]
[1720856563287,11.51,139.71,139.68,1.43157489]
[1720856564358,11.51,139.71,139.67,1.4315752]
[1720856564583,11.51,139.71,139.68,1.43157518]
[1720856565564,11.51,139.71,139.67,1.43157818]
[1720856565858,11.51,139.71,139.68,1.43157829]
[1720856566765,11.51,139.71,139.67,1.43157743]
[1720856566970,11.51,139.7,139.67,1.43157743]
[1720856567682,11.51,139.7,139.68,1.43159606]
[1720856570298,11.51,139.69,139.65,67.9667]
[1720856571065,11.51,139.68,139.65,67.9667]
[1720856571706,1.02319166,139.73,139.65,67.9667]
[1720856571871,11.51,139.68,139.65,67.9667]
[1720856572070,11.51,139.69,139.65,67.9667]
[1720856572280,11.51,139.7,139.66,1.43160281]
[1720856572780,11.51,139.7,139.65,79.4767]
[1720856573503,11.51,139.69,139.65,79.4767]
[1720856573707,1.02319166,139.73,139.65,67.9667]
[1720856573708,11.51,139.68,139.65,67.9667]
[1720856574194,11.51,139.69,139.65,67.9667]
[1720856574402,11.51,139.68,139.65,67.9667]
[1720856575293,1.02319166,139.73,139.65,67.9667]
[1720856575599,11.51,139.68,139.65,67.9667]
[1720856578101,11.51,139.68,139.65,22.9667]
[1720856578311,11.51,139.67,139.65,22.9667]
[1720856578495,11.51,139.67,139.64,20.0]
[1720856578679,11.51,139.67,139.63,20.0]
[1720856579002,11.51,139.67,139.64,45.0]
[1720856579301,11.51,139.67,139.65,20.0]
[1720856580499,11.51,139.67,139.62,21.9781]
[1720856580695,11.51,139.67,139.63,1.43197106]
[1720856581001,11.51,139.67,139.63,46.43197106]
[1720856581198,11.51,139.67,139.64,20.0]
[1720856581497,11.51,139.67,139.62,33.4881]
[1720856581801,0.52331336,139.71,139.63,1.43207063]
[1720856581802,11.51,139.66,139.63,1.43207063]
[1720856582005,11.51,139.67,139.63,1.43207063]
[1720856582892,11.51,139.66,139.63,1.43207063]
[1720856583287,11.51,139.66,139.62,21.9781]
[1720856583607,11.51,139.66,139.63,20.0]
[1720856584505,11.51,139.65,139.63,20.0]
[1720856591612,11.51,139.64,139.59,21.7054]
[1720856591986,11.51,139.64,139.59,33.2154]
[1720856592881,11.51,139.64,139.6,45.0]
[1720856593414,11.51,139.64,139.61,20.0]
[1720856594492,11.51,139.63,139.61,20.0]
[1720856595111,11.51,139.63,139.6,20.0]
[1720856595311,11.51,139.63,139.61,1.43236581]
[1720856595912,11.51,139.63,139.6,20.0]
[1720856596112,11.51,139.63,139.6,20.94356855]
[1720856596419,11.51,139.63,139.61,1.43236203]
[1720856596719,11.51,139.63,139.6,20.0]
[1720856596917,11.51,139.63,139.6,21.43236207]
[1720856597417,11.51,139.63,139.6,20.0]
[1720856597608,11.51,139.63,139.6,21.43236533]
[1720856597806,11.51,139.63,139.6,20.0]
[1720856599597,11.51,139.62,139.6,20.0]
[1720856599794,11.51,139.62,139.56,21.7054]
[1720856599795,11.51,139.61,139.57,20.0]
[1720856600009,11.51,139.6,139.57,20.0]
[1720856601014,11.51,139.6,139.56,21.7054]
[1720856601325,11.51,139.6,139.57,45.0]
[1720856602429,11.51,139.6,139.58,20.0]
[1720856603021,11.51,139.6,139.57,20.0]
[1720856604226,11.51,139.6,139.58,1.43262235]
[1720856605206,11.51,139.6,139.57,20.0]
[1720856605928,11.51,139.61,139.57,20.0]
[1720856607210,11.51,139.61,139.58,1.43258483]
[1720856608927,11.51,139.61,139.57,20.0]
[1720856609324,11.51,139.61,139.58,1.43258307]
[1720856613629,11.51,139.6,139.57,20.0]
[1720856615326,11.51,139.6,139.58,1.43263435]
[1720856616746,11.51,139.6,139.57,20.0]
[1720856617041,11.51,139.61,139.58,1.43262822]
[1720856617724,11.51,139.61,139.57,20.0]
[1720856617925,11.51,139.59,139.57,20.0]
[1720856618140,11.51,139.59,139.55,20.0]
[1720856618342,11.51,139.59,139.56,45.0]
[1720856618519,11.51,139.59,139.57,20.0]
[1720856619839,11.51,139.59,139.55,20.0]
[1720856620519,0.52331336,139.63,139.55,20.0]
[1720856620717,11.51,139.6,139.56,46.43262671]
[1720856620913,11.51,139.6,139.57,20.0]
[1720856621116,11.51,139.61,139.58,1.43263514]
[1720856624346,0.52331336,139.63,139.58,1.43263514]
[1720856624534,15.62061336,139.64,139.58,46.43263514]
[1720856624856,11.51,139.62,139.59,1.43243706]
[1720856626739,11.51,139.62,139.58,45.0]
[1720856627357,11.51,139.61,139.58,45.0]
[1720856628370,15.62061336,139.64,139.58,45.0]
[1720856628532,11.51,139.62,139.58,45.0]
[1720856628733,0.52331336,139.64,139.59,1.4324427]
[1720856628936,0.52331336,139.67,139.6,11.51]
[1720856629132,16.99221336,139.68,139.61,12.94214976]
[1720856629342,0.4998783,139.73,139.62,76.51]
[1720856629343,16.4689,139.72,139.62,76.51]
[1720856629562,11.51,139.68,139.64,11.51]
[1720856629765,11.51,139.68,139.65,1.43184372]
[1720856630750,11.51,139.67,139.65,1.43184372]
[1720856631150,11.51,139.67,139.64,65.0]
[1720856631465,11.51,139.67,139.64,20.0]
[1720856631668,11.51,139.67,139.63,21.43202073]
[1720856633458,11.51,139.66,139.63,21.43202073]
[1720856633763,11.51,139.66,139.64,1.43203262]
[1720856634475,0.52331336,139.7,139.64,1.43203262]
[1720856634476,11.51,139.67,139.64,1.43203262]
[1720856634637,11.51,139.67,139.63,1.43201683]
[1720856638667,0.52331336,139.7,139.63,1.43201683]
[1720856638972,0.52331336,139.71,139.63,57.94201683]
[1720856639275,11.51,139.68,139.64,20.0]
[1720856639569,11.51,139.67,139.65,1.4319184]
[1720856640468,11.51,139.68,139.64,57.94189441]
[1720856640670,0.52331336,139.72,139.66,34.4501]
[1720856640855,11.51,139.72,139.67,77.94153543]
[1720856641059,11.51,139.72,139.68,1.43152523]
[1720856641354,11.51,139.71,139.68,1.43152523]
[1720856641568,11.51,139.71,139.67,20.0]
[1720856641742,11.51,139.71,139.67,21.43157051]
[1720856641939,11.51,139.71,139.68,1.43164689]
[1720856642872,11.51,139.7,139.67,20.0]
[1720856643080,11.51,139.69,139.67,20.0]
[1720856643768,11.51,139.69,139.67,1.4318202]
[1720856644243,11.51,139.69,139.61,22.9401]
[1720856644445,11.51,139.69,139.64,11.51]
[1720856644779,1.02319166,139.73,139.65,21.43182517]
[1720856644976,11.51,139.69,139.65,21.43182517]
[1720856645157,11.51,139.7,139.65,21.43182517]
[1720856645473,11.51,139.69,139.65,21.43182517]
[1720856646470,11.51,139.69,139.65,20.0]
[1720856646952,11.51,139.69,139.66,1.43179987]
[1720856648050,11.51,139.67,139.65,20.0]
[1720856648353,11.51,139.66,139.61,34.4501]
[1720856648680,11.51,139.66,139.61,22.9401]
[1720856649546,11.51,139.66,139.62,65.0]
[1720856650171,0.52331336,139.71,139.62,65.0]
[1720856650369,11.51,139.66,139.62,65.0]
[1720856652178,0.52331336,139.7,139.63,1.43203819]
[1720856652477,11.51,139.67,139.63,1.43203819]
[1720856654675,11.51,139.66,139.63,1.43203819]
[1720856659267,0.52331336,139.7,139.63,1.43203819]
[1720856659577,11.51,139.67,139.63,1.43203819]
[1720856660298,11.51,139.68,139.63,1.43203819]
[1720856660593,11.51,139.69,139.64,11.51]
[1720856660780,11.51,139.69,139.65,1.4318157]
[1720856663199,11.51,139.69,139.66,1.43185922]
[1720856663502,11.51,139.68,139.64,1.43185724]
[1720856663705,11.51,139.68,139.65,1.43185801]
[1720856664614,11.51,139.68,139.64,1.43185996]
[1720856665115,11.51,139.67,139.65,1.43186275]
[1720856666017,11.51,139.67,139.63,1.43190611]
[1720856667099,11.51,139.67,139.62,76.51]
[1720856668297,0.52331336,139.7,139.63,1.4319054]
[1720856668615,11.51,139.67,139.63,1.4319054]
[1720856670222,11.51,139.67,139.62,76.51]
[1720856670421,11.51,139.67,139.62,65.0]
[1720856670625,11.51,139.66,139.62,65.0]
[1720856672097,11.51,139.67,139.63,1.43203447]
[1720856672425,11.51,139.68,139.63,12.94203447]
[1720856677930,11.51,139.67,139.63,1.43203447]
[1720856678139,11.51,139.67,139.62,65.0]
[1720856678448,11.51,139.67,139.62,76.51]
[1720856678600,11.51,139.67,139.63,1.43192327]
[1720856678804,11.51,139.67,139.62,76.51]
[1720856679629,0.52331336,139.71,139.63,1.43192521]
[1720856679860,11.51,139.66,139.63,1.43192521]
[1720856682917,11.51,139.67,139.63,1.43192521]
[1720856683115,11.51,139.66,139.62,20.0]
[1720856683442,11.51,139.66,139.63,1.43199713]
[1720856684136,11.51,139.66,139.62,20.0]
[1720856684436,11.51,139.65,139.62,20.0]
[1720856684855,11.51,139.65,139.63,1.43069563]
[1720856685635,11.51,139.66,139.63,1.43069563]
[1720856687629,10.52331336,139.7,139.62,20.0]
[1720856687928,11.51,139.64,139.62,20.0]
[1720856690332,11.51,139.63,139.57,21.9418]
[1720856690517,11.51,139.63,139.58,20.0]
[1720856691122,11.51,139.62,139.58,20.0]
[1720856692110,11.51,139.63,139.58,20.0]
[1720856692313,11.51,139.63,139.58,31.51]
[1720856692738,11.51,139.63,139.59,1.43235514]
[1720856694036,11.51,139.63,139.58,31.51]
[1720856698538,11.51,139.62,139.59,1.43247604]
[1720856699221,11.51,139.63,139.59,1.43247604]
[1720856700662,11.51,139.63,139.58,31.51]
[1720856700948,11.51,139.62,139.58,20.0]
[1720856701252,11.51,139.62,139.59,1.43244708]
[1720856701456,11.51,139.62,139.58,20.0]
[1720856701659,11.51,139.62,139.59,1.43246197]
[1720856702224,10.0,139.66,139.57,21.9418]
[1720856702429,11.51,139.61,139.57,21.9418]
[1720856702630,11.51,139.6,139.57,21.9418]
[1720856703452,11.51,139.6,139.58,1.43266365]
[1720856703640,11.51,139.61,139.58,1.43266365]
[1720856703840,11.51,139.6,139.58,1.43266365]
[1720856707655,11.51,139.6,139.57,21.9418]
[1720856708257,11.51,139.6,139.58,1.43265183]
[1720856708444,11.51,139.6,139.57,21.9418]
[1720856708647,11.51,139.6,139.58,1.43264872]
[1720856709049,11.51,139.6,139.57,21.9418]
[1720856709563,11.51,139.59,139.54,22.2584]
[1720856709738,11.51,139.59,139.55,65.0]
[1720856710061,11.51,139.58,139.55,20.0]
[1720856710741,11.51,139.57,139.54,22.2584]
[1720856710948,11.51,139.56,139.54,22.2584]
[1720856712236,0.52331336,139.63,139.54,22.2584]
[1720856712451,11.51,139.58,139.54,22.2584]
[1720856713254,20.52331336,139.63,139.54,22.2584]
[1720856713463,11.51,139.58,139.54,22.2584]
[1720856714062,11.51,139.59,139.55,1.43282231]
[1720856714247,0.52331336,139.63,139.55,66.43282231]
[1720856714453,11.51,139.61,139.56,11.51]
[1720856714654,11.51,139.61,139.57,21.43263043]
[1720856714867,11.51,139.61,139.58,1.43263031]
[1720856715566,11.51,139.6,139.58,1.43263031]
[1720856715960,0.52331336,139.64,139.57,1.43265121]
[1720856716143,11.51,139.6,139.58,1.43262994]
[1720856716545,11.51,139.61,139.58,1.43262994]
[1720856717155,11.51,139.61,139.57,1.43262987]
[1720856717655,0.52331336,139.64,139.58,1.43262986]
[1720856717847,11.51,139.62,139.58,1.43262986]
[1720856719468,11.51,139.62,139.57,11.51]
[1720856719760,11.51,139.61,139.56,31.51]
[1720856719963,11.51,139.61,139.57,45.0]
[1720856720139,11.51,139.6,139.56,20.0]
[1720856720343,11.51,139.59,139.57,1.43272114]
[1720856720954,11.51,139.6,139.56,1.43275653]
[1720856721148,0.52331336,139.64,139.56,1.43275653]
[1720856721654,11.51,139.6,139.56,1.43275653]
[1720856721965,11.51,139.6,139.56,46.43275653]
[1720856722159,11.51,139.6,139.57,20.0]
[1720856722464,11.51,139.59,139.56,1.43275653]
[1720856722644,11.51,139.6,139.57,1.43275895]
[1720856722845,11.51,139.6,139.58,1.43266568]
[1720856723040,11.51,139.6,139.56,1.43270291]
[1720856724884,11.51,139.59,139.56,1.43270291]
[1720856725072,11.51,139.59,139.55,20.0]
[1720856725570,11.51,139.59,139.56,1.43276414]
[1720856725868,11.51,139.58,139.56,1.43276414]
[1720856727671,11.51,139.6,139.56,1.43276414]
[1720856728179,11.51,139.59,139.56,1.43276414]
[1720856728678,11.51,139.6,139.56,1.43276414]
[1720856729980,0.52331336,139.64,139.55,31.51]
[1720856730179,0.52331336,139.65,139.58,33.5596]
[1720856730379,11.51,139.63,139.59,1.43245557]
[1720856731383,11.51,139.61,139.59,1.43245557]
[1720856732195,11.51,139.61,139.58,22.0496]
[1720856732699,11.51,139.64,139.59,57.94251287]
[1720856732870,11.51,139.64,139.6,20.0]
[1720856733190,11.51,139.63,139.61,1.43227295]
[1720856735291,11.51,139.63,139.6,21.43233227]
[1720856735485,11.51,139.63,139.61,1.43233319]
[1720856738891,11.51,139.63,139.6,20.0]
[1720856739270,10.52331336,139.67,139.6,20.0]
[1720856739488,11.51,139.61,139.59,20.0]
[1720856739677,11.51,139.61,139.59,21.43250194]
[1720856740890,11.51,139.61,139.58,22.0496]
[1720856744900,11.51,139.61,139.59,1.43255788]
[1720856748579,10.52331336,139.67,139.59,1.43255788]
[1720856748782,11.51,139.61,139.59,1.43255788]
[1720856749905,0.52331336,139.67,139.59,1.43255788]
[1720856750203,11.51,139.62,139.59,1.43255788]
[1720856750494,0.52331336,139.67,139.59,1.43255788]
[1720856750695,11.51,139.64,139.59,77.94255788]
[1720856751079,11.51,139.63,139.59,77.94255788]
[1720856751283,11.51,139.62,139.59,21.43255788]
[1720856752105,11.51,139.63,139.59,21.43255788]
[1720856752501,11.51,139.63,139.59,20.0]
[1720856753891,11.51,139.62,139.59,20.0]
[1720856754102,11.51,139.62,139.6,1.43243798]
[1720856754401,11.51,139.62,139.59,20.0]
[1720856754776,11.51,139.62,139.6,1.4323626]
[1720856754977,11.51,139.62,139.61,1.43237073]
[1720856755206,11.51,139.62,139.59,20.0]
[1720856756585,11.51,139.63,139.6,0.71402692]
[1720856757007,11.51,139.63,139.6,1.43233499]
[1720856757193,11.51,139.63,139.59,20.0]
[1720856757607,11.51,139.62,139.59,20.0]
[1720856758108,11.51,139.62,139.58,22.0496]
[1720856758300,11.51,139.62,139.59,65.0]
[1720856758883,0.52331336,139.67,139.59,65.0]
[1720856759108,11.51,139.62,139.59,65.0]
[1720856760701,11.51,139.62,139.59,20.0]
[1720856761405,15.0886,139.66,139.55,21.8911]
[1720856761585,11.51,139.6,139.55,33.4011]
[1720856761980,11.51,139.6,139.56,46.432621]
[1720856762688,0.52331336,139.65,139.57,11.51]
[1720856762995,11.51,139.62,139.58,21.4324153]
[1720856763920,11.51,139.62,139.58,20.0]
[1720856764289,11.51,139.62,139.59,1.43246382]
[1720856767827,11.51,139.62,139.58,20.0]
[1720856768123,11.51,139.62,139.59,1.43246182]
[1720856768320,0.52331336,139.65,139.59,1.43246182]
[1720856768524,11.51,139.62,139.58,20.0]
[1720856770527,11.51,139.62,139.57,31.51]
[1720856770825,11.51,139.62,139.58,45.0]
[1720856771037,11.51,139.62,139.59,20.0]
[1720856773509,11.51,139.61,139.59,20.0]
[1720856773709,11.51,139.61,139.57,20.0]
[1720856780751,11.51,139.61,139.56,31.51]
[1720856781042,11.51,139.61,139.57,46.43252785]
[1720856781264,11.51,139.61,139.58,21.43252567]
[1720856781429,0.52331336,139.65,139.58,21.43252567]
[1720856781632,11.51,139.62,139.58,21.43252567]
[1720856782562,0.52331336,139.65,139.58,32.94252567]
[1720856782854,11.51,139.63,139.58,32.94252567]
[1720856783061,0.52331336,139.65,139.58,32.94252567]
[1720856783226,11.51,139.64,139.59,11.51]
[1720856783427,11.51,139.64,139.6,1.43234154]
[1720856783650,11.51,139.64,139.61,1.43234214]
[1720856785045,16.72541336,139.66,139.61,1.43234214]
[1720856785243,11.51,139.64,139.61,1.43234214]
[1720856785639,11.51,139.64,139.62,1.43223621]
[1720856785934,0.52331336,139.67,139.62,1.43223621]
[1720856786133,11.51,139.64,139.62,1.43223621]
[1720856786646,11.51,139.64,139.61,1.43223524]
[1720856789258,0.52331336,139.67,139.61,1.43223524]
[1720856789466,11.51,139.64,139.61,1.43223524]
[1720856789969,11.51,139.64,139.6,20.0]
[1720856790138,0.52331336,139.67,139.57,11.51]
[1720856790455,11.51,139.62,139.58,65.0]
[1720856790837,11.51,139.62,139.59,1.43239645]
[1720856791462,11.51,139.63,139.59,1.43239645]
[1720856793438,10.52331336,139.67,139.59,1.43239645]
[1720856793760,11.51,139.62,139.59,1.43239645]
[1720856793960,11.51,139.63,139.59,1.43239645]
[1720856797444,0.52331336,139.67,139.59,1.43239645]
[1720856797760,11.51,139.63,139.58,76.51]
[1720856798149,11.51,139.63,139.59,1.43230394]
[1720856804843,11.51,139.63,139.58,65.0]
[1720856805176,11.51,139.63,139.58,76.51]
[1720856807974,11.51,139.62,139.58,20.0]
[1720856808183,11.51,139.62,139.55,21.8911]
[1720856808184,11.51,139.61,139.56,20.0]
[1720856808348,11.51,139.61,139.56,31.51]
[1720856809678,11.51,139.61,139.57,1.43248549]
[1720856809983,11.51,139.61,139.56,31.51]
[1720856809984,11.51,139.61,139.58,1.4324846]
[1720856810146,11.51,139.62,139.58,1.4324846]
[1720856810350,11.51,139.62,139.58,21.4324846]
[1720856810650,11.51,139.62,139.58,20.0]
[1720856810850,11.51,139.62,139.59,1.4324524]
[1720856811281,11.51,139.61,139.58,20.0]
[1720856811666,11.51,139.61,139.59,1.43255169]
[1720856813061,11.51,139.61,139.58,20.0]
[1720856813484,11.51,139.61,139.59,1.43255033]
[1720856813983,11.51,139.6,139.56,20.0]
[1720856814652,0.52331336,139.64,139.57,57.94249785]
[1720856814871,11.51,139.62,139.58,21.43243642]
[1720856815053,11.51,139.62,139.58,20.0]
[1720856815753,11.51,139.61,139.58,20.0]
[1720856815980,11.51,139.61,139.59,1.43258416]
[1720856816165,11.51,139.62,139.57,12.94257266]
[1720856816480,11.51,139.62,139.58,21.4325286]
[1720856817181,0.52331336,139.64,139.58,21.4325286]
[1720856817383,11.51,139.62,139.58,21.4325286]
[1720856818067,11.51,139.62,139.58,20.0]
[1720856818549,11.51,139.62,139.59,1.43245129]
[1720856819881,0.52331336,139.67,139.6,1.43249218]
[1720856820082,11.51,139.64,139.6,1.43249218]
[1720856820251,0.52331336,139.67,139.61,1.43227049]
[1720856820452,11.51,139.64,139.61,1.43227049]
[1720856820869,11.51,139.65,139.61,1.43227049]
[1720856822084,11.51,139.64,139.61,1.43227049]
[1720856825785,11.51,139.65,139.61,1.43227049]
[1720856826661,0.52331336,139.67,139.61,1.43227049]
[1720856826863,0.52331336,139.71,139.63,22.2214]
[1720856827088,11.51,139.69,139.64,77.9417632]
[1720856827286,11.51,139.69,139.65,1.4317642]
[1720856829393,0.52331336,139.71,139.65,1.4317642]
[1720856829597,11.51,139.69,139.65,1.4317642]
[1720856833996,11.51,139.69,139.64,76.51]
[1720856835373,11.51,139.69,139.65,1.43176091]
[1720856837303,11.51,139.71,139.66,11.51]
[1720856837473,11.51,139.71,139.67,1.4315667]
[1720856837672,11.51,139.71,139.68,1.43156526]
[1720856838584,11.51,139.71,139.69,1.43156574]
[1720856838784,11.51,139.71,139.67,1.43156425]
[1720856838984,11.51,139.71,139.68,1.43158676]
[1720856839183,11.51,139.7,139.64,65.0]
[1720856839397,11.51,139.7,139.65,11.51]
[1720856839592,11.51,139.7,139.66,45.0]
[1720856839798,1.02319166,139.73,139.64,20.0]
[1720856840008,11.51,139.69,139.64,31.51]
[1720856840311,11.51,139.68,139.64,20.0]
[1720856840485,11.51,139.69,139.64,31.51]
[1720856840684,11.51,139.69,139.65,46.43177219]
[1720856841100,11.51,139.69,139.65,57.94177219]
[1720856841281,11.51,139.7,139.65,57.94177219]
[1720856841486,11.51,139.7,139.65,56.51]
[1720856843691,11.51,139.69,139.65,45.0]
[1720856843993,11.51,139.69,139.64,20.0]
[1720856844184,11.51,139.68,139.64,20.0]
[1720856850626,11.51,139.67,139.64,20.0]
[1720856851816,0.52331336,139.66,139.59,22.9086]
[1720856852020,11.51,139.63,139.59,22.9086]
[1720856852313,0.52331336,139.67,139.59,22.9086]
[1720856854023,0.52331336,139.67,139.6,20.0]
[1720856854324,16.65591336,139.67,139.59,22.9086]
[1720856854518,11.51,139.61,139.59,22.9086]
[1720856854814,11.51,139.61,139.52,67.6]
[1720856854815,11.51,139.61,139.55,22.9086]
[1720856855032,11.51,139.61,139.57,1.43256869]
[1720856855217,11.51,139.61,139.58,1.43265685]
[1720856856717,11.51,139.6,139.58,1.43265685]
[1720856857104,11.51,139.6,139.57,1.43266858]
[1720856857320,11.51,139.6,139.58,1.43266843]
[1720856858228,11.51,139.6,139.57,1.43266734]
[1720856858437,11.51,139.6,139.58,1.43266807]
[1720856858606,11.51,139.6,139.56,20.0]
[1720856858806,11.51,139.6,139.57,1.4326679]
[1720856859129,11.51,139.6,139.58,1.4326679]
[1720856859330,11.51,139.6,139.56,20.0]